[Event "Early-Titled-Tuesday-Blitz-February-13-2024"]
[Site "Chess.com"]
[Date "2024.02.13"]
[Round "3"]
[White "Suleyman_Chess06"]
[Black "Msb2"]
[Result "1/2-1/2"]
[WhiteElo "2768"]
[BlackElo "2998"]
[TimeControl "180+1"]
[EndTime "8:33:45 PST"]
[Termination "Game drawn by repetition"]

1. Nf3 {[%clk 0:03:00.9]} 1... d5 {[%clk 0:03:00.3]} 2. g3 {[%clk 0:03:01.4]}
2... e6 {[%clk 0:03:00.8]} 3. Bg2 {[%clk 0:03:02.1]} 3... Nf6 {[%clk 0:03:01.6]}
4. O-O {[%clk 0:03:02.8]} 4... Bd6 {[%clk 0:03:02.3]} 5. d4 {[%clk 0:03:03.6]}
5... O-O {[%clk 0:03:02.8]} 6. c4 {[%clk 0:03:04.3]} 6... Nc6 {[%clk 0:03:03.2]}
7. Nc3 {[%clk 0:03:04]} 7... dxc4 {[%clk 0:03:02.3]} 8. Qa4 {[%clk 0:03:03.4]}
8... e5 {[%clk 0:03:02.7]} 9. dxe5 {[%clk 0:03:01.8]} 9... Nxe5 {[%clk
0:03:03.6]} 10. Nxe5 {[%clk 0:03:02.5]} 10... Bxe5 {[%clk 0:03:04.5]} 11. Qxc4
{[%clk 0:03:03.1]} 11... c6 {[%clk 0:03:04.6]} 12. Bg5 {[%clk 0:03:01.1]} 12...
Be6 {[%clk 0:03:00.9]} 13. Qc5 {[%clk 0:02:57.3]} 13... Bd4 {[%clk 0:02:55.4]}
14. Qb4 {[%clk 0:02:53.4]} 14... Qb6 {[%clk 0:02:52.9]} 15. Qxb6 {[%clk
0:02:53.1]} 15... axb6 {[%clk 0:02:53.8]} 16. Rfd1 {[%clk 0:02:45.7]} 16... Be5
{[%clk 0:02:42.5]} 17. Be3 {[%clk 0:02:42.8]} 17... b5 {[%clk 0:02:41.2]} 18.
Bd4 {[%clk 0:02:42.7]} 18... Nd7 {[%clk 0:02:28.9]} 19. a3 {[%clk 0:02:36.5]}
19... Bxd4 {[%clk 0:02:10.9]} 20. Rxd4 {[%clk 0:02:36.1]} 20... Ne5 {[%clk
0:02:11.8]} 21. Ne4 {[%clk 0:02:27.3]} 21... Rad8 {[%clk 0:02:05.7]} 22. Rad1
{[%clk 0:02:27.2]} 22... Rxd4 {[%clk 0:02:04.2]} 23. Rxd4 {[%clk 0:02:28.1]}
23... Nc4 {[%clk 0:02:04.7]} 24. Nc5 {[%clk 0:02:22.2]} 24... Bc8 {[%clk
0:02:04.8]} 25. a4 {[%clk 0:02:11.7]} 25... Nxb2 {[%clk 0:01:39.4]} 26. axb5
{[%clk 0:02:10.3]} 26... cxb5 {[%clk 0:01:40.3]} 27. Rb4 {[%clk 0:02:09.4]}
27... Na4 {[%clk 0:01:40.9]} 28. Rxb5 {[%clk 0:01:53.4]} 28... Nxc5 {[%clk
0:01:31.7]} 29. Rxc5 {[%clk 0:01:53.5]} 29... Rd8 {[%clk 0:01:32.4]} 30. h4
{[%clk 0:01:46]} 30... g6 {[%clk 0:01:32.2]} 31. Bf3 {[%clk 0:01:42.7]} 31... h5
{[%clk 0:01:22.5]} 32. Kg2 {[%clk 0:01:38.9]} 32... Kg7 {[%clk 0:01:11.8]} 33.
Rb5 {[%clk 0:00:54.7]} 33... Rd7 {[%clk 0:01:09.3]} 34. Rb6 {[%clk 0:00:54.3]}
34... Rc7 {[%clk 0:01:05.9]} 35. e4 {[%clk 0:00:53.7]} 35... Rc6 {[%clk
0:00:57.1]} 36. Rb2 {[%clk 0:00:40]} 36... Rc5 {[%clk 0:00:53.3]} 37. Rb6 {[%clk
0:00:36]} 37... Rc6 {[%clk 0:00:50.2]} 38. Rb4 {[%clk 0:00:35.9]} 38... Re6
{[%clk 0:00:46.5]} 39. e5 {[%clk 0:00:31.6]} 39... b6 {[%clk 0:00:42.4]} 40. Bd1
{[%clk 0:00:19.8]} 40... Bb7+ {[%clk 0:00:31.2]} 41. Bf3 {[%clk 0:00:20.1]}
41... Ba6 {[%clk 0:00:28.7]} 42. Bd5 {[%clk 0:00:20.4]} 42... Rxe5 {[%clk
0:00:28.6]} 43. Rxb6 {[%clk 0:00:21.1]} 43... Bf1+ {[%clk 0:00:24.9]} 44. Kxf1
{[%clk 0:00:21]} 44... Rxd5 {[%clk 0:00:25.8]} 45. Kg2 {[%clk 0:00:21.4]} 45...
Rd3 {[%clk 0:00:26.3]} 46. Rb4 {[%clk 0:00:21.7]} 46... Rd6 {[%clk 0:00:26.2]}
47. Rb7 {[%clk 0:00:21.6]} 47... Rf6 {[%clk 0:00:26.3]} 48. Rc7 {[%clk
0:00:21.6]} 48... Rf5 {[%clk 0:00:26.7]} 49. Rb7 {[%clk 0:00:21.9]} 49... Re5
{[%clk 0:00:27.1]} 50. Rc7 {[%clk 0:00:22.3]} 50... Re4 {[%clk 0:00:27.5]} 51.
Rb7 {[%clk 0:00:22.7]} 51... Ra4 {[%clk 0:00:28.1]} 52. Rc7 {[%clk 0:00:23.1]}
52... Kf6 {[%clk 0:00:28.5]} 53. Rb7 {[%clk 0:00:23.5]} 53... Rc4 {[%clk
0:00:28.3]} 54. Ra7 {[%clk 0:00:23.4]} 54... Rc6 {[%clk 0:00:28.3]} 55. Rb7
{[%clk 0:00:23.8]} 55... Rd6 {[%clk 0:00:28.7]} 56. Rc7 {[%clk 0:00:24]} 56...
Re6 {[%clk 0:00:29.3]} 57. Rb7 {[%clk 0:00:24.3]} 57... Re5 {[%clk 0:00:29.5]}
58. Ra7 {[%clk 0:00:24.3]} 58... Ke6 {[%clk 0:00:30.1]} 59. Kf3 {[%clk
0:00:24.3]} 59... f6 {[%clk 0:00:29.7]} 60. Ra4 {[%clk 0:00:23]} 60... Rb5
{[%clk 0:00:29.1]} 61. Re4+ {[%clk 0:00:21.8]} 61... Kf5 {[%clk 0:00:29.7]} 62.
Rf4+ {[%clk 0:00:22.2]} 62... Ke6 {[%clk 0:00:30.5]} 63. Re4+ {[%clk 0:00:22.6]}
63... Kf7 {[%clk 0:00:31.2]} 64. Rc4 {[%clk 0:00:22.5]} 64... Rb3+ {[%clk
0:00:31.4]} 65. Kf4 {[%clk 0:00:18.8]} 65... Rb6 {[%clk 0:00:32.3]} 66. Kf3
{[%clk 0:00:18.9]} 66... Rb7 {[%clk 0:00:29.5]} 67. Rc6 {[%clk 0:00:19.1]} 67...
Ra7 {[%clk 0:00:29.9]} 68. Ke3 {[%clk 0:00:19.3]} 68... Kg7 {[%clk 0:00:30.4]}
69. Kf3 {[%clk 0:00:19.6]} 69... Ra3+ {[%clk 0:00:30.2]} 70. Kg2 {[%clk
0:00:20.2]} 70... Ra7 {[%clk 0:00:30.5]} 71. Rb6 {[%clk 0:00:20.5]} 71... Re7
{[%clk 0:00:30.5]} 72. Kf3 {[%clk 0:00:21]} 72... g5 {[%clk 0:00:28.2]} 73. hxg5
{[%clk 0:00:19.6]} 73... fxg5 {[%clk 0:00:29.1]} 74. Kg2 {[%clk 0:00:20.1]}
74... Re5 {[%clk 0:00:26.9]} 75. f4 {[%clk 0:00:17.5]} 75... Rf5 {[%clk
0:00:22]} 76. fxg5 {[%clk 0:00:17.3]} 76... Rxg5 {[%clk 0:00:22.9]} 77. Kh3
{[%clk 0:00:17.4]} 77... Rg4 {[%clk 0:00:23.4]} 78. Ra6 {[%clk 0:00:17]} 78...
Kh7 {[%clk 0:00:23.6]} 79. Rb6 {[%clk 0:00:17.3]} 79... Ra4 {[%clk 0:00:23.1]}
80. Rb5 {[%clk 0:00:16.5]} 80... Kh6 {[%clk 0:00:23.2]} 81. Rb6+ {[%clk
0:00:17.1]} 81... Kg7 {[%clk 0:00:23.7]} 82. Rb5 {[%clk 0:00:17.4]} 82... Kg6
{[%clk 0:00:24.4]} 83. Rb6+ {[%clk 0:00:17.8]} 83... Kg7 {[%clk 0:00:22.9]} 84.
Rb5 {[%clk 0:00:18.2]} 84... Kh6 {[%clk 0:00:21.8]} 85. Rb6+ {[%clk 0:00:18.6]}
85... Kh7 {[%clk 0:00:22.4]} 86. Rb5 {[%clk 0:00:18.9]} 86... Kh6 {[%clk
0:00:22.3]} 1/2-1/2

[Event "Early-Titled-Tuesday-Blitz-February-13-2024"]
[Site "Chess.com"]
[Date "2024.02.13"]
[Round "3"]
[White "maicolbenavides"]
[Black "yaguigor"]
[Result "1-0"]
[WhiteElo "2510"]
[BlackElo "2695"]
[TimeControl "180+1"]
[EndTime "8:34:29 PST"]
[Termination "maicolbenavides won by resignation"]

1. e4 {[%clk 0:03:00.9]} 1... c5 {[%clk 0:02:56.3]} 2. Nf3 {[%clk 0:03:00.6]}
2... e6 {[%clk 0:02:56]} 3. c4 {[%clk 0:03:00]} 3... Nc6 {[%clk 0:02:54.1]} 4.
Nc3 {[%clk 0:02:59.1]} 4... e5 {[%clk 0:02:53.9]} 5. Be2 {[%clk 0:02:56.9]} 5...
d6 {[%clk 0:02:53.9]} 6. O-O {[%clk 0:02:57.4]} 6... f5 {[%clk 0:02:52.1]} 7. d3
{[%clk 0:02:55.5]} 7... Nf6 {[%clk 0:02:50]} 8. Bg5 {[%clk 0:02:50.8]} 8... Be7
{[%clk 0:02:47.9]} 9. Bxf6 {[%clk 0:02:45.8]} 9... Bxf6 {[%clk 0:02:47.6]} 10.
Nd5 {[%clk 0:02:46.7]} 10... O-O {[%clk 0:02:45.8]} 11. a3 {[%clk 0:02:44.8]}
11... g6 {[%clk 0:02:32]} 12. b4 {[%clk 0:02:44.3]} 12... b6 {[%clk 0:02:31.8]}
13. Rb1 {[%clk 0:02:39.3]} 13... Bg7 {[%clk 0:02:30.4]} 14. a4 {[%clk
0:02:34.7]} 14... Bh6 {[%clk 0:02:18.9]} 15. b5 {[%clk 0:02:09.1]} 15... Na5
{[%clk 0:02:09.9]} 16. Nd2 {[%clk 0:02:06.7]} 16... Bxd2 {[%clk 0:02:06]} 17.
Qxd2 {[%clk 0:02:06.4]} 17... f4 {[%clk 0:02:06.9]} 18. Qd1 {[%clk 0:02:04.6]}
18... h5 {[%clk 0:02:04.9]} 19. Bxh5 {[%clk 0:01:38.9]} 19... gxh5 {[%clk
0:02:02.3]} 20. Qxh5 {[%clk 0:01:39.8]} 20... Qd7 {[%clk 0:01:56]} 21. Qg6+
{[%clk 0:01:34.9]} 21... Qg7 {[%clk 0:01:54.6]} 22. Ne7+ {[%clk 0:01:31.4]}
22... Kh8 {[%clk 0:01:52.5]} 23. Qh5+ {[%clk 0:01:26.2]} 23... Qh7 {[%clk
0:01:51.5]} 24. Ng6+ {[%clk 0:01:25.9]} 24... Kg7 {[%clk 0:01:50.9]} 25. Qxh7+
{[%clk 0:01:24.1]} 25... Kxh7 {[%clk 0:01:51.1]} 26. Nxf8+ {[%clk 0:01:24.7]}
26... Kg7 {[%clk 0:01:51.5]} 27. f3 {[%clk 0:01:11.2]} 27... Kxf8 {[%clk
0:01:50.4]} 28. g3 {[%clk 0:01:05.5]} 28... Be6 {[%clk 0:01:36.9]} 29. g4 {[%clk
0:00:51.4]} 29... Kg7 {[%clk 0:01:33.5]} 30. Kg2 {[%clk 0:00:45.5]} 30... Rh8
{[%clk 0:01:32.2]} 31. Rh1 {[%clk 0:00:31.3]} 31... Rh4 {[%clk 0:01:32.2]} 32.
Kf2 {[%clk 0:00:30]} 32... Kf6 {[%clk 0:01:30.3]} 33. Kg2 {[%clk 0:00:25.5]}
33... Kg5 {[%clk 0:01:29.3]} 34. Kf2 {[%clk 0:00:25.4]} 34... Nb7 {[%clk
0:01:24.8]} 35. Ra1 {[%clk 0:00:21]} 35... Rh3 {[%clk 0:01:19.9]} 36. Kg2 {[%clk
0:00:20.4]} 36... Rh4 {[%clk 0:01:15]} 37. Rhg1 {[%clk 0:00:19.1]} 37... Na5
{[%clk 0:01:12.7]} 38. Rab1 {[%clk 0:00:18.8]} 38... Bd7 {[%clk 0:01:11.6]} 39.
Rh1 {[%clk 0:00:18.8]} 39... Bc8 {[%clk 0:01:09.2]} 40. h3 {[%clk 0:00:19.2]}
40... Be6 {[%clk 0:01:06.9]} 41. Kf2 {[%clk 0:00:18.5]} 41... Nb7 {[%clk
0:01:03.7]} 42. Ra1 {[%clk 0:00:18.1]} 42... Bd7 {[%clk 0:01:02.2]} 43. Kg2
{[%clk 0:00:17.6]} 43... Na5 {[%clk 0:01:00.3]} 44. Rab1 {[%clk 0:00:17.6]}
44... Bc8 {[%clk 0:00:59]} 45. Rb2 {[%clk 0:00:17.8]} 45... Kf6 {[%clk
0:00:58.6]} 46. Kf2 {[%clk 0:00:17]} 46... Ke7 {[%clk 0:00:56]} 47. Kg2 {[%clk
0:00:17.2]} 47... Be6 {[%clk 0:00:54.6]} 48. Kf2 {[%clk 0:00:16.2]} 48... Kd7
{[%clk 0:00:54.6]} 49. Rbb1 {[%clk 0:00:14.8]} 49... Kc7 {[%clk 0:00:53.8]} 50.
Rh2 {[%clk 0:00:14.7]} 50... Nb7 {[%clk 0:00:52.5]} 51. Rb2 {[%clk 0:00:14.3]}
51... Nd8 {[%clk 0:00:50]} 52. Ra2 {[%clk 0:00:14.6]} 52... Nf7 {[%clk
0:00:48.1]} 53. a5 {[%clk 0:00:14.8]} 53... Kb7 {[%clk 0:00:46.5]} 54. axb6
{[%clk 0:00:14.8]} 54... axb6 {[%clk 0:00:47.4]} 55. Kg2 {[%clk 0:00:14.8]}
55... Ng5 {[%clk 0:00:45.9]} 56. Rh1 {[%clk 0:00:15.2]} 56... Bc8 {[%clk
0:00:43.9]} 57. Rha1 {[%clk 0:00:12.8]} 57... Kc7 {[%clk 0:00:40.6]} 58. Ra7+
{[%clk 0:00:12.9]} 58... Bb7 {[%clk 0:00:40.5]} 59. Rh1 {[%clk 0:00:12]} 59...
Kb8 {[%clk 0:00:40]} 60. Raa1 {[%clk 0:00:12]} 60... Bc8 {[%clk 0:00:39.8]} 61.
Ra2 {[%clk 0:00:12.2]} 61... Bb7 {[%clk 0:00:36.9]} 62. Raa1 {[%clk 0:00:12.3]}
62... Ne6 {[%clk 0:00:36.2]} 63. Ra2 {[%clk 0:00:10.9]} 63... Nd4 {[%clk
0:00:35]} 64. Kf2 {[%clk 0:00:11.5]} 64... Bc8 {[%clk 0:00:32.7]} 65. Raa1
{[%clk 0:00:12]} 65... Nc2 {[%clk 0:00:29.8]} 66. Rag1 {[%clk 0:00:10.7]} 66...
Be6 {[%clk 0:00:26.1]} 67. g5 {[%clk 0:00:11.1]} 67... Kc7 {[%clk 0:00:24]} 68.
g6 {[%clk 0:00:11.4]} 68... Bg8 {[%clk 0:00:23.5]} 69. g7 {[%clk 0:00:11.4]}
69... Kd7 {[%clk 0:00:22]} 70. Rg4 {[%clk 0:00:11.5]} 70... Rh6 {[%clk
0:00:20.6]} 71. h4 {[%clk 0:00:11.5]} 71... Ne3 {[%clk 0:00:21]} 72. Rg5 {[%clk
0:00:11.1]} 72... Ke7 {[%clk 0:00:21.2]} 73. h5 {[%clk 0:00:11]} 73... Kf6
{[%clk 0:00:21.1]} 74. Rgg1 {[%clk 0:00:10.7]} 74... Kf7 {[%clk 0:00:18.5]} 75.
Rg6 {[%clk 0:00:09.9]} 75... Rxg6 {[%clk 0:00:17.4]} 76. hxg6+ {[%clk
0:00:10.8]} 76... Kxg6 {[%clk 0:00:16.1]} 77. Ra1 {[%clk 0:00:11.4]} 77... Kxg7
{[%clk 0:00:15.1]} 78. Ra6 {[%clk 0:00:12]} 78... Kf6 {[%clk 0:00:15.4]} 79.
Rxb6 {[%clk 0:00:12.4]} 79... Ke7 {[%clk 0:00:16.1]} 80. Rb7+ {[%clk 0:00:12.9]}
80... Ke6 {[%clk 0:00:15.1]} 81. Rg7 {[%clk 0:00:12.9]} 81... Bf7 {[%clk
0:00:14.5]} 82. Rxf7 {[%clk 0:00:11.4]} 82... Kxf7 {[%clk 0:00:14.1]} 83. b6
{[%clk 0:00:12]} 83... Nd1+ {[%clk 0:00:13.8]} 84. Ke1 {[%clk 0:00:09.7]} 84...
Nb2 {[%clk 0:00:13.8]} 85. b7 {[%clk 0:00:09.9]} 85... Nxd3+ {[%clk 0:00:13.8]}
86. Kd2 {[%clk 0:00:10.3]} 86... Nb4 {[%clk 0:00:13.7]} 87. b8=Q {[%clk
0:00:10.9]} 87... Ke7 {[%clk 0:00:14.1]} 88. Qh8 {[%clk 0:00:10.7]} 88... Kd7
{[%clk 0:00:14.1]} 89. Qg7+ {[%clk 0:00:10.9]} 89... Kc6 {[%clk 0:00:13.7]} 90.
Qg8 {[%clk 0:00:11]} 90... Kc7 {[%clk 0:00:13.8]} 91. Qf7+ {[%clk 0:00:10.7]}
91... Kc6 {[%clk 0:00:13.4]} 92. Qe8+ {[%clk 0:00:11.2]} 92... Kc7 {[%clk
0:00:13.7]} 93. Qe7+ {[%clk 0:00:11.7]} 93... Kc6 {[%clk 0:00:14.2]} 94. Qd8
{[%clk 0:00:12]} 94... Na6 {[%clk 0:00:13.1]} 95. Qc8+ {[%clk 0:00:11.7]} 95...
Nc7 {[%clk 0:00:13.3]} 96. Kc3 {[%clk 0:00:11.9]} 96... Kb6 {[%clk 0:00:12.3]}
97. Qd7 {[%clk 0:00:12.1]} 1-0

[Event "Early-Titled-Tuesday-Blitz-February-13-2024"]
[Site "Chess.com"]
[Date "2024.02.13"]
[Round "3"]
[White "toninhojit"]
[Black "UnTucopalaTimba"]
[Result "0-1"]
[WhiteElo "2528"]
[BlackElo "1986"]
[TimeControl "180+1"]
[EndTime "8:34:29 PST"]
[Termination "UnTucopalaTimba won by resignation"]

1. d4 {[%clk 0:03:00.9]} 1... Nf6 {[%clk 0:02:59.6]} 2. c4 {[%clk 0:03:00.3]}
2... e6 {[%clk 0:02:59.6]} 3. Nf3 {[%clk 0:02:59.3]} 3... d5 {[%clk 0:02:58.7]}
4. Nc3 {[%clk 0:02:58.3]} 4... Bb4 {[%clk 0:02:58.4]} 5. Bg5 {[%clk 0:02:57.6]}
5... dxc4 {[%clk 0:02:51.8]} 6. e4 {[%clk 0:02:56.3]} 6... b5 {[%clk 0:02:43.1]}
7. e5 {[%clk 0:02:48.1]} 7... h6 {[%clk 0:02:42.7]} 8. Bh4 {[%clk 0:02:41.6]}
8... g5 {[%clk 0:02:40.1]} 9. Nxg5 {[%clk 0:02:42]} 9... hxg5 {[%clk 0:02:11.9]}
10. Bxg5 {[%clk 0:02:42.9]} 10... Rg8 {[%clk 0:02:05.8]} 11. Bxf6 {[%clk
0:02:41.4]} 11... Qd5 {[%clk 0:02:04.1]} 12. Qd2 {[%clk 0:02:36]} 12... Bxc3
{[%clk 0:02:02]} 13. bxc3 {[%clk 0:02:36.9]} 13... Bb7 {[%clk 0:02:01.6]} 14.
Rg1 {[%clk 0:02:11.5]} 14... Nd7 {[%clk 0:01:58.7]} 15. Bh4 {[%clk 0:02:05.3]}
15... Rg4 {[%clk 0:01:49.4]} 16. g3 {[%clk 0:02:04.1]} 16... Re4+ {[%clk
0:01:46.6]} 17. Kd1 {[%clk 0:02:03.1]} 17... c5 {[%clk 0:01:41.5]} 18. Bg2
{[%clk 0:01:56.5]} 18... cxd4 {[%clk 0:01:38]} 19. Bxe4 {[%clk 0:01:54.4]} 19...
Qxe4 {[%clk 0:01:38.1]} 20. Qxd4 {[%clk 0:01:48.4]} 20... Qf3+ {[%clk
0:01:37.8]} 21. Ke1 {[%clk 0:01:45]} 21... Nb6 {[%clk 0:01:33.4]} 22. Qe3 {[%clk
0:01:34.2]} 22... Qf5 {[%clk 0:01:27.2]} 23. Rd1 {[%clk 0:01:06.5]} 23... Nd5
{[%clk 0:01:22.1]} 24. Qd4 {[%clk 0:00:50.8]} 24... Rc8 {[%clk 0:00:59.3]} 25.
Qxa7 {[%clk 0:00:38.1]} 25... Qe4+ {[%clk 0:00:57.7]} 26. Kf1 {[%clk 0:00:35.3]}
26... Nxc3 {[%clk 0:00:54.8]} 27. Qe3 {[%clk 0:00:04.5]} 27... Qxe3 {[%clk
0:00:49.5]} 28. fxe3 {[%clk 0:00:05.4]} 28... Nxd1 {[%clk 0:00:49.4]} 29. Ke2
{[%clk 0:00:06]} 29... Nc3+ {[%clk 0:00:49]} 30. Kd2 {[%clk 0:00:06.6]} 30...
Ne4+ {[%clk 0:00:47.6]} 31. Kc2 {[%clk 0:00:06.7]} 31... b4 {[%clk 0:00:43]} 32.
Rb1 {[%clk 0:00:06.9]} 32... b3+ {[%clk 0:00:37.3]} 33. axb3 {[%clk 0:00:07.4]}
33... cxb3+ {[%clk 0:00:37.4]} 34. Kxb3 {[%clk 0:00:08.3]} 34... Bd5+ {[%clk
0:00:37.4]} 35. Ka3 {[%clk 0:00:07.4]} 35... Ra8+ {[%clk 0:00:36.4]} 36. Kb2
{[%clk 0:00:07.7]} 36... Rb8+ {[%clk 0:00:36.1]} 37. Kc1 {[%clk 0:00:08.3]}
37... Rxb1+ {[%clk 0:00:36]} 38. Kxb1 {[%clk 0:00:09.2]} 38... Kf8 {[%clk
0:00:34.2]} 39. Kb2 {[%clk 0:00:09.5]} 39... Kg7 {[%clk 0:00:33.6]} 40. Kc2
{[%clk 0:00:10.2]} 40... Kg6 {[%clk 0:00:33.7]} 41. Kd3 {[%clk 0:00:10.8]} 41...
Kf5 {[%clk 0:00:33.5]} 42. Kd4 {[%clk 0:00:10.2]} 42... Kg4 {[%clk 0:00:29.7]}
43. Bd8 {[%clk 0:00:09.2]} 43... Kh3 {[%clk 0:00:29.1]} 44. Bh4 {[%clk
0:00:05.6]} 44... Kxh2 {[%clk 0:00:29]} 45. Bd8 {[%clk 0:00:04.1]} 45... Kxg3
{[%clk 0:00:28.3]} 46. Be7 {[%clk 0:00:04.8]} 46... Kf3 {[%clk 0:00:27.7]} 47.
Bd8 {[%clk 0:00:05.4]} 47... Kg4 {[%clk 0:00:26.9]} 48. Be7 {[%clk 0:00:05.5]}
48... Kf5 {[%clk 0:00:26.9]} 49. Bd8 {[%clk 0:00:06]} 49... f6 {[%clk
0:00:26.4]} 50. exf6 {[%clk 0:00:05.9]} 50... Nxf6 {[%clk 0:00:24.8]} 51. Kc5
{[%clk 0:00:06.2]} 51... Ne4+ {[%clk 0:00:21.7]} 52. Kd4 {[%clk 0:00:06.5]}
52... Nf2 {[%clk 0:00:21]} 53. Bc7 {[%clk 0:00:06.8]} 53... Ne4 {[%clk
0:00:19.3]} 54. Bb8 {[%clk 0:00:07.3]} 54... Nf2 {[%clk 0:00:17.7]} 55. Bc7
{[%clk 0:00:07.7]} 55... Ng4 {[%clk 0:00:17.5]} 56. Bb8 {[%clk 0:00:08.2]} 56...
Bg2 {[%clk 0:00:16.9]} 57. Bc7 {[%clk 0:00:08.2]} 57... e5+ {[%clk 0:00:17]} 58.
Kd3 {[%clk 0:00:08.2]} 58... Bf1+ {[%clk 0:00:17]} 59. Kd2 {[%clk 0:00:08.3]}
59... Ke4 {[%clk 0:00:17.2]} 60. Bb6 {[%clk 0:00:08.7]} 60... Bb5 {[%clk
0:00:17.1]} 61. Ba7 {[%clk 0:00:09.1]} 61... Nf2 {[%clk 0:00:16.4]} 62. Bb6
{[%clk 0:00:09.1]} 62... Nd3 {[%clk 0:00:16.6]} 63. Ba7 {[%clk 0:00:08.9]} 63...
Nb4 {[%clk 0:00:16.3]} 64. Bc5 {[%clk 0:00:07.6]} 64... Nd5 {[%clk 0:00:16.2]}
65. Ba7 {[%clk 0:00:07.1]} 65... Kf3 {[%clk 0:00:16.3]} 66. Bc5 {[%clk 0:00:03]}
66... e4 {[%clk 0:00:16.2]} 67. Bd4 {[%clk 0:00:03]} 67... Ne7 {[%clk
0:00:15.3]} 68. Bc5 {[%clk 0:00:03.3]} 68... Nf5 {[%clk 0:00:15.3]} 69. Bb6
{[%clk 0:00:03.9]} 69... Bd3 {[%clk 0:00:15.1]} 70. Ba7 {[%clk 0:00:04.4]} 70...
Kf2 {[%clk 0:00:15.1]} 71. Bb6 {[%clk 0:00:04.9]} 71... Kf3 {[%clk 0:00:15.4]}
72. Ba7 {[%clk 0:00:05.5]} 72... Ng3 {[%clk 0:00:14.8]} 73. Bb6 {[%clk 0:00:06]}
73... Nf1+ {[%clk 0:00:14.8]} 74. Ke1 {[%clk 0:00:06.1]} 74... Nxe3 {[%clk
0:00:14.7]} 75. Ba7 {[%clk 0:00:06]} 75... Nc2+ {[%clk 0:00:14.6]} 76. Kd2
{[%clk 0:00:06.5]} 76... Nb4 {[%clk 0:00:13.2]} 77. Bc5 {[%clk 0:00:05.6]} 77...
Nd5 {[%clk 0:00:12.8]} 78. Ba7 {[%clk 0:00:06.2]} 78... Ba6 {[%clk 0:00:12.6]}
79. Bc5 {[%clk 0:00:05.8]} 79... e3+ {[%clk 0:00:12.7]} 80. Ke1 {[%clk
0:00:06.3]} 80... Nc3 {[%clk 0:00:11.5]} 81. Bb4 {[%clk 0:00:04.4]} 81... Ne4
{[%clk 0:00:11.4]} 82. Ba5 {[%clk 0:00:04.7]} 82... Bd3 {[%clk 0:00:11.1]} 83.
Kd1 {[%clk 0:00:04.9]} 83... Ng3 {[%clk 0:00:10.1]} 84. Ke1 {[%clk 0:00:05.2]}
84... Nf5 {[%clk 0:00:09.5]} 85. Bb6 {[%clk 0:00:05.6]} 85... Nh4 {[%clk
0:00:09.2]} 86. Ba5 {[%clk 0:00:05]} 86... Ng2+ {[%clk 0:00:09.1]} 87. Kd1
{[%clk 0:00:05.9]} 87... e2+ {[%clk 0:00:09]} 88. Kc1 {[%clk 0:00:06.5]} 88...
Kf2 {[%clk 0:00:08.6]} 89. Be1+ {[%clk 0:00:07.4]} 89... Nxe1 {[%clk 0:00:08.4]}
90. Kd2 {[%clk 0:00:06.6]} 90... Ba6 {[%clk 0:00:07.8]} 0-1